[Event "44th Chess Olympiad Open 2022"]
[Site "Chennai"]
[Date "2022.08.01"]
[Round "4.7"]
[White "Indjic, Aleksandar"]
[Black "Adams, Michael"]
[Result "0-1"]
[WhiteElo "2620"]
[BlackElo "2696"]
[Annotator "TA"]
[PlyCount "84"]
[EventDate "2022.??.??"]
[TimeControl "60"]

{[%evp 15,84,20,21,12,18,0,0,0,0,0,0,0,30,6,38,28,33,-27,-17,-20,-14,-52,-54,
-45,-50,-40,-55,-104,-87,-99,-60,-71,-56,-43,-51,-98,-110,-237,-237,-230,-230,
-229,-212,-259,-249,-384,-387,-377,-377,-609,-595,-508,-556,-728,-697,-724,0,
-241,0,-715,-682,-670,-632,-581,-429,-558,-546,-29987,-29988,-29988,-29989]} 1.
d4 {[%emt 0:01:13]} Nf6 {[%emt 0:00:05]} 2. c4 {[%emt 0:00:25]} e6 {[%emt 0:00:
00]} 3. Nc3 {[%emt 0:00:22]} d5 {[%emt 0:00:06]} 4. cxd5 {[%emt 0:00:25]} exd5
{[%emt 0:00:06]} 5. Bg5 {[%emt 0:00:25]} c6 {[%emt 0:00:05]} 6. e3 {[%emt 0:00:
00]} h6 {[%emt 0:00:11]} 7. Bh4 {[%emt 0:00:14]} Be7 {[%emt 0:00:07]} 8. Bd3 {
[%emt 0:00:48]} O-O {[%emt 0:00:15]} 9. Bg3 {[%emt 0:00:07] D35: Queen's
Gambit Declined: Exchange Variation.} Bd6 {[%emt 0:10:45]} 10. Nf3 {[%emt 0:00:
00]} Bxg3 {[%emt 0:07:49]} 11. hxg3 {[%emt 0:00:21] The position is equal.} ({
Don't play} 11. fxg3 Qe7 $15) 11... Nbd7 {[%emt 0:00:11] [#]} 12. Rh4 $146 {
[%emt 0:04:57]} ({Predecessor:} 12. b4 Qe7 13. a3 Re8 14. O-O Nf8 15. Ne5 Ne4
16. Nxe4 dxe4 17. Be2 f6 18. Nc4 Be6 19. Nd2 {0-1 (48) Loncke,M (1726)-Houard,
S (2123) Europe Echecs INT 2021}) 12... Re8 {[%emt 0:11:27]} 13. Qc2 {[%emt 0:
00:00]} c5 {[%emt 0:02:18]} 14. Bf5 {[%emt 0:07:17]} (14. O-O-O $5 {[%cal
Rg3g4]}) 14... cxd4 {[%emt 0:12:10]} 15. Rxd4 {[%emt 0:03:57]} Nf8 {[%emt 0:00:
00]} 16. g4 {[%emt 0:05:20]} (16. Rad1 $14) 16... g6 $11 {[%emt 0:03:45]} 17.
Bxc8 {[%emt 0:02:25]} Rxc8 {[%emt 0:02:12]} 18. g5 {[%emt 0:00:16]} hxg5 {
[%emt 0:04:09]} 19. Nxg5 {[%emt 0:00:08]} Re5 {[%emt 0:00:31]} 20. Nf3 {
[%emt 0:00:32]} Rh5 {[%emt 0:01:22]} 21. O-O-O {[%emt 0:01:18]} (21. Rad1 $15 {
was preferrable.}) 21... Ne6 $17 {[%emt 0:00:13]} 22. R4d2 {[%emt 0:04:05]} b5
{[%emt 0:09:42]} 23. Qb3 {[%emt 0:01:43]} a6 {[%emt 0:01:14]} 24. Kb1 {[%emt 0:
00:00]} Rc4 $36 {[%emt 0:01:42] Black is pushing.} 25. a3 {[%emt 0:00:00]} (25.
Rc1 $15) 25... Nc5 {[%emt 0:03:14]} 26. Qc2 {[%emt 0:00:32]} (26. Qa2 $17)
26... Nfe4 $19 {[%emt 0:02:02]} 27. Rd4 {[%emt 0:00:34]} Nxc3+ {[%emt 0:05:39]}
28. bxc3 {[%emt 0:00:10]} Qa5 {[%emt 0:02:26][%csl Ya3,Yc3]} 29. Rxc4 {[%emt 0:
01:15]} dxc4 {[%emt 0:00:48]} 30. g4 {[%emt 0:01:13]} (30. Ka2 {was called for.
}) 30... Rh3 {[%emt 0:03:45]} 31. Ng5 {[%emt 0:06:19]} Rh2 {[%emt 0:01:30]} ({
Don't go for} 31... Rh4 $2 32. Ne4 Nxe4 33. Qxe4 Qxc3 34. Qe7 $19) 32. Ne4 $2 {
[%emt 0:21:18]} (32. a4) 32... Nxe4 {[%emt 0:02:16]} 33. Qxe4 {[%emt 0:00:13] 
[#] Hoping for Qe8+.} Qxc3 {[%emt 0:00:44] Endgame White must now prevent ...
Qb3+. KQR-KQR} 34. Qf4 {[%emt 0:00:16] Rd8+ is the strong threat.} Qb3+ {
[%emt 0:00:46]} 35. Kc1 {[%emt 0:00:07] Intending Rd8+ and mate.} Qc3+ $2 {
[%emt 0:00:16]} (35... Qxa3+ 36. Kb1 Qb3+ 37. Kc1 Qa3+ 38. Kb1 Qb3+ 39. Kc1
Qc3+ 40. Kb1 Rh3) 36. Kb1 {[%emt 0:00:06] Threatens to win with Rd8+.} Qb3+ $2
{[%emt 0:00:05]} (36... Rh3 37. Rd8+ Kg7 38. Qd4+ Qxd4 39. Rxd4 Rf3) 37. Kc1 {
[%emt 0:00:04] [#] Rd8+ would kill now.} Qxa3+ {[%emt 0:00:00]} 38. Kb1 {
[%emt 0:00:17]} Qb3+ {[%emt 0:03:54]} 39. Kc1 {[%emt 0:00:19] Threatening mate
with Rd8+.} Qc3+ {[%emt 0:00:24]} 40. Kb1 {[%emt 0:00:08] Strongly threatening
Rd8+.} Rh3 {[%emt 0:02:12] ( -> ...Qb3+)} 41. g5 {[%emt 0:00:00]} Qb3+ {
[%emt 0:34:05]} 42. Kc1 {[%emt 0:00:07]} c3 {[%emt 0:04:21] Weighted Error
Value: White=0.69/Black=0.27 (precise)} 0-1

[Event "44th Chess Olympiad Open 2022"]
[Site "Chennai"]
[Date "2022.08.01"]
[Round "4.7"]
[White "Ivanisevic, Ivan"]
[Black "Howell, David W L"]
[Result "0-1"]
[WhiteElo "2561"]
[BlackElo "2650"]
[Annotator "TA"]
[PlyCount "98"]
[EventDate "2022.??.??"]
[TimeControl "60"]

{[%evp 11,98,10,14,12,10,8,9,6,14,-1,1,13,13,4,6,3,28,-42,-39,-28,-42,-41,-39,
-35,-30,-29,-32,-25,-27,-29,-24,-131,-138,-122,-46,-88,-10,-2,0,0,0,0,191,-389,
-370,-373,-343,-362,-347,-383,-385,-343,-220,-175,-202,-29972,-29974,-29979,
-29980,-12831,0,-12833,-12834,-12833,-12831,-12830,0,-12834,-12835,-12833,
-12832,-12833,-12833,-12833,-12834,-12834,-12835,-12835,-12835,-12836,-12836,
-12828,-2587,-11692,-2470,-12839,-5920,-12845,-12845]} 1. c4 {[%emt 0:00:02]}
g6 {[%emt 0:03:58]} 2. Nc3 {[%emt 0:02:51]} c5 {[%emt 0:00:29]} 3. g3 {[%emt 0:
00:00]} Bg7 {[%emt 0:00:34]} 4. Bg2 {[%emt 0:00:08]} Nc6 {[%emt 0:00:17]} 5. b3
{[%emt 0:00:55]} Nf6 {[%emt 0:18:28]} 6. Bb2 {[%emt 0:02:18]} O-O {[%emt 0:00:
00]} 7. e3 {[%emt 0:00:37] A36: Symmetrical English vs ...g6:4 Bg2 Bg7.} e6 {
[%emt 0:20:28]} 8. Nge2 {[%emt 0:00:55]} d5 {[%emt 0:01:15]} 9. O-O {[%emt 0:
00:00] The position is equal.} dxc4 {[%emt 0:19:49] [#]} 10. Na4 $146 {[%emt 0:
00:00]} ({Predecessor:} 10. bxc4 Bd7 11. Nc1 Rc8 12. Nb3 b6 13. d3 e5 14. a3
Bg4 15. Qc2 Bf5 16. Rad1 {½-½ (55) Kahl,F (2362)-Sorcinelli,A (2211) LSS
email 2019}) 10... cxb3 {[%emt 0:02:08]} 11. axb3 {[%emt 0:00:56]} Nd7 {
[%emt 0:04:53]} 12. Bxg7 {[%emt 0:01:25]} Kxg7 {[%emt 0:00:03]} 13. Qc1 {
[%emt 0:03:16]} Qe7 {[%emt 0:03:42]} 14. Nf4 {[%emt 0:03:55]} (14. Nec3 $11)
14... Nb4 $1 $15 {[%emt 0:01:18]} 15. d4 {[%emt 0:04:55]} cxd4 {[%emt 0:03:38]}
16. exd4 {[%emt 0:00:31]} Qd6 {[%emt 0:01:03]} 17. Nc3 {[%emt 0:13:28]} Nf6 {
[%emt 0:06:01]} 18. Ra5 {[%emt 0:15:23]} Qd8 {[%emt 0:05:28]} (18... Qxd4 $2
19. Rd1 Qb6 20. Rb5 $18) 19. Rb5 {[%emt 0:06:33][%csl Yb4,Yb7]} a5 {[%emt 0:00:
00]} (19... Qxd4 $2 20. Rd1 Nc6 21. Bxc6 bxc6 22. Rxd4 $18) 20. Rd1 {[%emt 0:
03:44]} Ra6 {[%emt 0:01:27]} 21. Ne4 {[%emt 0:01:55] Against Rd6} (21. Qa1 $11
{remains equal.}) 21... Nxe4 $1 $17 {[%emt 0:00:49]} 22. Bxe4 {[%emt 0:00:00]
[%cal Yf4h5]} Kg8 {[%emt 0:02:47]} (22... Rd6 $1 $17 {...b6 is the strong
threat.} 23. Bxb7 Bxb7 24. Rxb7 e5) 23. Qa1 {[%emt 0:09:49]} Bd7 {[%emt 0:01:
56]} (23... b6 $17 {With the idea ...Qe8.} 24. Re5 Ra7) 24. Rxb7 $11 {[%emt 0:
02:31]} Rd6 {[%emt 0:00:02]} 25. d5 {[%emt 0:05:55] Prevents Bc6.} exd5 {
[%emt 0:01:33]} 26. Nxd5 {[%emt 0:02:58]} ({Don't blunder} 26. Bxd5 $2 Bg4 27.
Rxb4 (27. Rd4 $2 Nxd5 28. Ng2 Qf6 $19) 27... axb4 $19) 26... Bg4 $2 {[%emt 0:
00:16] [#]} (26... Nxd5 $11 {and Black stays safe.} 27. Rxd5 (27. Bxd5 $2 Bc6
$19) 27... Be6 28. Rxd6 Qxd6) 27. f3 $4 {[%emt 0:03:05]} (27. Rb8 $1 $18 {
[%cal Rb8d8] is the narrow road to win.} Bxd1 28. Rxd8 Rfxd8 29. Nf6+ Rxf6 30.
Qxf6) 27... Nxd5 $19 {[%emt 0:00:46]} 28. fxg4 {[%emt 0:00:06]} Ne3 $1 {
[%emt 0:00:35][%csl Yd1,Yg4]} 29. Re1 {[%emt 0:01:31]} (29. Rxd6 Qxd6 30. Bf3
Qc5) 29... Nxg4 {[%emt 0:00:07]} 30. Bf3 {[%emt 0:00:00] [#]} Rd2 $1 {[%emt 0:
00:44]} 31. Qc3 {[%emt 0:00:47]} h5 {[%emt 0:00:34] Strongly threatening ...
Rd3. Dancing on a razor blade.} 32. Bxg4 {[%emt 0:00:00]} hxg4 $40 {[%emt 0:00:
02] Black attacks with force.} 33. Qe3 $2 {[%emt 0:00:34]} (33. Rb8 $19 Qxb8
34. Qxd2) 33... Qd5 {[%emt 0:00:36][%csl Gd2][%cal Rd5g2]} 34. Qe4 {[%emt 0:00:
02]} Qc5+ {[%emt 0:00:14]} 35. Qe3 {[%emt 0:00:00]} Qd5 {[%emt 0:00:15][%csl
Gd2][%cal Rd5g2]} 36. Qe4 {[%emt 0:00:06] Against Qg2+} Qh5 {[%emt 0:01:22]}
37. Re2 {[%emt 0:00:33]} Rd1+ {[%emt 0:00:00]} 38. Re1 {[%emt 0:00:15]} Rd2 {
[%emt 0:00:49]} 39. Re2 {[%emt 0:00:04]} Qc5+ {[%emt 0:00:13] Black is clearly
winning.} 40. Kf1 {[%emt 0:00:25]} Rd1+ {[%emt 0:00:13]} 41. Re1 {[%emt 0:30:
20]} Rxe1+ {[%emt 0:06:05]} 42. Qxe1 {[%emt 0:00:00] Endgame KQR-KQR} Qc6 {
[%emt 0:00:37]} 43. Re7 {[%emt 0:00:00]} Qh1+ {[%emt 0:00:16]} 44. Kf2 {
[%emt 0:00:00]} Qxh2+ {[%emt 0:00:00]} 45. Kf1 {[%emt 0:00:00]} Qh1+ {[%emt 0:
00:34]} 46. Kf2 {[%emt 0:00:00]} Qf3+ {[%emt 0:00:28]} 47. Kg1 {[%emt 0:00:00]}
Qxb3 {[%emt 0:00:05]} (47... Rd8 $142 48. Re3 Qc6 49. Qxa5 Rd1+ 50. Re1 Rd3)
48. Qe5 {[%emt 0:00:00]} a4 {[%emt 0:00:58]} 49. Re8 {[%emt 0:00:00]} Rxe8 {
[%emt 0:04:23] Weighted Error Value: White=0.77/Black=0.52} 0-1

[Event "44th Chess Olympiad Open 2022"]
[Site "Chennai"]
[Date "2022.08.01"]
[Round "4.8"]
[White "Gukesh D"]
[Black "Vocaturo, Daniele"]
[Result "1-0"]
[WhiteElo "2684"]
[BlackElo "2616"]
[Annotator "TA"]
[PlyCount "67"]
[EventDate "2022.??.??"]
[TimeControl "60"]

{[%evp 14,67,20,19,23,15,2,12,5,0,0,0,0,0,0,-10,-20,-12,0,0,0,-19,-10,-19,-14,
-9,30,31,12,15,100,92,91,82,192,183,178,178,223,225,326,324,320,307,306,306,
758,330,731,418,871,845,29993,29994,29997,29998]} 1. d4 {[%emt 0:01:06]} Nf6 {
[%emt 0:00:53]} 2. c4 {[%emt 0:01:38]} e6 {[%emt 0:00:46]} 3. Nf3 {[%emt 0:00:
00]} d5 {[%emt 0:00:49]} 4. Nc3 {[%emt 0:00:36]} c5 {[%emt 0:01:16]} 5. cxd5 {
[%emt 0:02:26]} cxd4 {[%emt 0:00:46]} 6. Qxd4 {[%emt 0:00:15]} exd5 {[%emt 0:
00:00]} 7. Bg5 {[%emt 0:00:46]} Be7 {[%emt 0:01:34]} 8. e3 {[%emt 0:01:40]} O-O
{[%emt 0:02:16] The main line 8...0-0 scores better than 8...Nc6. D50: Queen's
Gambit Declined: Dutch-Peruvian Gambit.} 9. Rd1 {[%emt 0:00:38][%cal Ya1d1,
Yd1d5,Yd5f5,Yf5b5]} Be6 {[%emt 0:01:20]} 10. Qa4 {[%emt 0:07:29]} h6 {[%emt 0:
08:00] [#] The position is equal.} 11. Bxf6 $5 $146 {[%emt 0:08:53] An
interesting novelty.} (11. Bh4 {is more complex.} Qb6 12. Bxf6 Bxf6 13. Nxd5
Qxb2 14. Bc4) ({Predecessor:} 11. Bh4 Qb6 12. Qb5 Rd8 13. Qxb6 axb6 14. a3 Nc6
15. Bd3 Bg4 16. Be2 Bxf3 17. Bxf3 {½-½ (34) Yilmaz,M (2631) -Oparin,G (2685)
Chess.com INT 2022}) 11... Bxf6 {[%emt 0:00:07]} 12. Nxd5 {[%emt 0:00:39]} Bxd5
{[%emt 0:01:14] A strong pair of Bishops.} 13. Qb5 {[%emt 0:00:22]} Bxb2 {
[%emt 0:10:05]} 14. Rxd5 {[%emt 0:01:45]} Bc3+ {[%emt 0:00:00]} 15. Kd1 {
[%emt 0:00:21]} Qe7 {[%emt 0:05:47] aiming for ...Na6.} 16. Bc4 {[%emt 0:04:17]
} Na6 {[%emt 0:09:39] Strongly threatening ...Nc7.} 17. Ke2 {[%emt 0:08:00]}
Rac8 $1 {[%emt 0:03:32] Threatens to win with ...Nc7.} 18. Qb3 {[%emt 0:23:18]}
Nb4 {[%emt 0:07:55][%cal Ye7e4] Hoping for ...Qe4!} 19. Rf5 $36 {[%emt 0:04:40]
White has the initiative.} Bf6 {[%emt 0:29:56]} 20. Rb5 {[%emt 0:02:55]} a5 {
[%emt 0:02:39]} 21. Rxa5 {[%emt 0:05:46]} Nc6 {[%emt 0:00:41]} (21... Rc7 $11)
22. Rb5 $16 {[%emt 0:02:30] White is more active.} b6 {[%emt 0:00:05]} 23. Bd5
{[%emt 0:00:43]} ({Avoid the trap} 23. Rxb6 $2 Na5 24. Qb4 Rxc4 25. Qxe7 (25.
Qxa5 $2 Rc2+ 26. Nd2 Bc3 $19) 25... Bxe7 $19) 23... Na7 {[%emt 0:02:02]} (23...
Na5 $16 24. Qb1 Nc4 25. Bxc4 Rxc4) 24. Rxb6 $18 {[%emt 0:01:38]} Rc3 {[%emt 0:
01:08] [#]} 25. Qb1 {[%emt 0:00:11]} Qc5 {[%emt 0:01:29]} 26. Rd1 {[%emt 0:01:
40][%cal Yb6f6]} Rc2+ {[%emt 0:01:22]} (26... Bd8 {was necessary.} 27. Rb7 Bf6)
27. Kf1 {[%emt 0:01:24] Black must now prevent Ne1.} Rd8 {[%emt 0:00:29]} 28.
Ne1 {[%emt 0:09:33]} Rc3 {[%emt 0:02:26]} 29. Bxf7+ {[%emt 0:03:10]} Kf8 $2 {
[%emt 0:01:06]} (29... Kxf7 30. Rxf6+ Kxf6) 30. Bh5 {[%emt 0:00:46]} Nc6 $2 {
[%emt 0:03:58]} (30... Qc4+ 31. Be2 Rxd1 32. Rb8+ Nc8 33. Qxd1 Qc7) 31. Rxd8+ {
[%emt 0:00:26]} Bxd8 {[%emt 0:00:09] [#]} (31... Nxd8 $142 32. g4 Rc1) 32. Qg6
$1 {[%emt 0:01:24][%csl Gh5][%cal Rg6e8]} Qc4+ {[%emt 0:00:35]} (32... Qxh5 33.
Qxh5) 33. Kg1 {[%emt 0:00:42][%csl Gh5][%cal Rg6e8]} Ke7 {[%emt 0:00:36]} 34.
Rb7+ {[%emt 0:00:24] Weighted Error Value: White=0.32/Black=0.59} 1-0

[Event "44th Chess Olympiad Open 2022"]
[Site "Chennai"]
[Date "2022.08.01"]
[Round "4.8"]
[White "Praggnanandhaa R"]
[Black "Lodici, Lorenzo"]
[Result "1/2-1/2"]
[WhiteElo "2648"]
[BlackElo "2553"]
[Annotator "TA"]
[PlyCount "83"]
[EventDate "2022.??.??"]
[TimeControl "60"]

{[%evp 14,83,6,0,0,0,0,0,0,0,0,0,6,24,20,8,18,17,17,15,16,0,65,69,65,20,23,19,
21,6,23,20,30,20,22,0,0,0,0,0,0,0,0,0,0,0,0,0,0,0,0,0,0,0,0,0,5,0,0,0,2,5,17,
17,17,17,17,17,17,17,17,0]} 1. d4 {[%emt 0:00:42]} Nf6 {[%emt 0:00:07]} 2. c4 {
[%emt 0:00:08]} e6 {[%emt 0:00:04]} 3. Nf3 {[%emt 0:00:06]} d5 {[%emt 0:00:05]}
4. Nc3 {[%emt 0:00:06]} c6 {[%emt 0:00:04]} 5. e3 {[%emt 0:03:03]} Nbd7 {
[%emt 0:00:06]} 6. Be2 {[%emt 0:01:56]} Bd6 {[%emt 0:01:42]} 7. O-O {[%emt 0:
00:00]} O-O {[%emt 0:00:20]} 8. b3 {[%emt 0:01:15]} b6 {[%emt 0:00:05] D45:
Semi-Slav: 5 e3.} 9. Bb2 {[%emt 0:00:42]} Bb7 {[%emt 0:00:07]} 10. Bd3 {
[%emt 0:01:15]} Qe7 {[%emt 0:05:03]} 11. Re1 {[%emt 0:06:28] [#]} Rfd8 $146 {
[%emt 0:29:36]} ({Predecessor:} 11... Ba3 12. Qc1 Bxb2 13. Qxb2 dxc4 14. Bxc4
c5 15. Be2 Rac8 16. Qa3 a6 17. Rac1 b5 {½-½ (63) Erigaisi,A (2629)-Dreev,A 
(2623) Warsaw 2021}) 12. Qc2 {[%emt 0:15:17]} h6 {[%emt 0:08:14]} 13. e4 {
[%emt 0:05:09]} dxe4 {[%emt 0:00:22]} 14. Nxe4 {[%emt 0:01:01]} Ba3 {[%emt 0:
00:00]} 15. Bc3 {[%emt 0:03:39]} a5 {[%emt 0:03:52]} 16. Re3 {[%emt 0:09:42]}
Bb4 {[%emt 0:05:26]} 17. Bb2 {[%emt 0:02:19][%cal Yc4c5]} Ba3 {[%emt 0:04:10]
Prevents c5.} (17... Nxe4 $11 18. Rxe4 Ba3) 18. Bxa3 $14 {[%emt 0:03:06]} Qxa3
{[%emt 0:00:02]} 19. Nc3 {[%emt 0:06:20] White is more active.} Qd6 {[%emt 0:
00:00]} 20. Rd1 {[%emt 0:00:45]} Qc7 {[%emt 0:02:44]} 21. Bf1 {[%emt 0:06:45]}
Re8 {[%emt 0:03:13]} 22. g3 {[%emt 0:04:23]} Rad8 {[%emt 0:04:19]} 23. Bg2 {
[%emt 0:00:51]} c5 {[%emt 0:01:07] The position is equal.} 24. d5 {[%emt 0:00:
00]} (24. Red3 {looks sharper.} Qc8 25. Qe2 e5 26. dxe5 Bxf3 27. Bxf3 Nxe5 28.
Rxd8 Nxf3+ 29. Qxf3 Rxd8 30. Rxd8+ Qxd8 31. Qe3) 24... exd5 {[%emt 0:00:12] ...
d4 is the strong threat.} 25. Rxe8+ {[%emt 0:00:24]} Nxe8 {[%emt 0:00:25]} 26.
Nxd5 {[%emt 0:03:43]} Bxd5 {[%emt 0:00:50]} 27. Rxd5 {[%emt 0:00:09]} Ndf6 {
[%emt 0:01:16]} 28. Rd3 {[%emt 0:02:02]} Rxd3 {[%emt 0:02:12]} 29. Qxd3 {
[%emt 0:00:03]} Qe7 {[%emt 0:00:21]} 30. Nd2 {[%emt 0:05:41]} Nc7 {[%emt 0:00:
00]} 31. Bh3 {[%emt 0:01:31]} g6 {[%emt 0:01:26]} 32. Nf1 {[%emt 0:01:23]} h5 {
[%emt 0:05:12]} 33. Ne3 {[%emt 0:04:32]} Kf8 {[%emt 0:00:09]} 34. Bc8 {[%emt 0:
00:00]} Ke8 {[%emt 0:00:51]} 35. h4 {[%emt 0:00:37]} Qe5 {[%emt 0:02:29]} 36.
Kg2 {[%emt 0:01:40]} Ke7 {[%emt 0:02:22]} 37. Nd1 {[%emt 0:01:28]} Ne6 {
[%emt 0:05:22]} 38. Bxe6 {[%emt 0:00:35]} Qxe6 {[%emt 0:00:02]} 39. Nc3 {
[%emt 0:00:27]} Qc6+ {[%emt 0:00:03]} 40. Qf3 {[%emt 0:01:55]} Qe6 {[%emt 0:00:
00]} 41. Qa8 {[%emt 0:08:10]} Qd6 {[%emt 0:04:45]} 42. Ne4 {[%emt 0:06:50]
Weighted Error Value: White=0.04 (flawless) /Black=0.05 (flawless)} 1/2-1/2

[Event "44th Chess Olympiad Open 2022"]
[Site "Chennai"]
[Date "2022.08.01"]
[Round "4.8"]
[White "Moroni, Luca Jr"]
[Black "Nihal Sarin"]
[Result "0-1"]
[WhiteElo "2584"]
[BlackElo "2651"]
[Annotator "TA"]
[PlyCount "102"]
[EventDate "2022.??.??"]
[TimeControl "60"]

{[%evp 12,102,-12,-4,0,-17,-32,-25,-33,-37,-26,-31,-33,-77,-52,-42,0,0,-12,-45,
-20,-137,-139,-221,-235,-229,-235,-238,-227,-259,-258,-260,-253,-297,-285,-259,
-204,-183,-181,-291,-308,-308,-308,-305,-306,-293,-263,-327,-322,-320,-255,
-329,-337,-360,-323,-310,-276,-468,-278,-467,-439,-467,-464,-456,-429,-421,
-329,-329,-322,-321,-320,-321,-279,-321,-321,-437,-412,-586,-581,-658,-658,
-1250,-1131,-1310,-1241,-1109,-999,-4133,-1783,-1485,-1413,-1031,-707]} 1. d4 {
[%emt 0:00:03]} Nf6 {[%emt 0:00:53]} 2. Nf3 {[%emt 0:00:06]} g6 {[%emt 0:01:08]
} 3. Bf4 {[%emt 0:00:20]} Bg7 {[%emt 0:00:11]} 4. e3 {[%emt 0:00:51]} O-O {
[%emt 0:00:09]} 5. Nbd2 {[%emt 0:00:53]} d6 {[%emt 0:01:36]} 6. h3 {[%emt 0:00:
00]} c5 {[%emt 0:04:29]} 7. c3 {[%emt 0:03:03]} cxd4 $1 {[%emt 0:06:00]
outshines the older 7...Nc6. A48:1 d4 Nf6 2 Nf3 g6: Torre, London and Colle
Systems.} 8. cxd4 {[%emt 0:10:38]} Nc6 {[%emt 0:02:20][%cal Ye7e5]} 9. Bc4 {
[%emt 0:05:21]} Qb6 $5 {[%emt 0:17:43] [#] Black has an edge. A promising side
line.} 10. b3 $146 {[%emt 0:10:32]} ({Predecessor:} 10. Qb3 Qxb3 11. Bxb3 Nb4
12. Ke2 Bf5 13. Ne1 Rac8 14. a3 Nc6 15. Nef3 Na5 16. Ba4 {½-½ (66) Kovalev,D
(2502)-Sivuk,V (2515) Mukachevo 2017}) 10... e5 {[%emt 0:18:34]} 11. dxe5 {
[%emt 0:11:35]} dxe5 {[%emt 0:00:24]} 12. Bh2 {[%emt 0:07:43]} e4 {[%emt 0:07:
52]} 13. Ne5 {[%emt 0:00:56]} Qa5 {[%emt 0:09:23]} 14. Nxc6 {[%emt 0:04:33]}
bxc6 {[%emt 0:00:10]} 15. a3 {[%emt 0:05:27]} Rd8 $36 {[%emt 0:00:00] Black
wants to play ...Qg5. Black has the initiative.} 16. b4 {[%emt 0:02:51] Black
continues to play with concentration.} (16. Qc1 $1 $11 {remains equal.}) 16...
Qg5 $17 {[%emt 0:01:42]} 17. Qb3 {[%emt 0:13:46]} (17. Bc7 $17 Qxg2 18. Rh2
Qg1+ 19. Ke2 Qxd1+ 20. Rxd1) 17... Nd5 $19 {[%emt 0:01:32]} ({Weaker is} 17...
Qxg2 18. O-O-O $11) 18. O-O {[%emt 0:08:15] [#]} Bxh3 $1 {[%emt 0:04:56][%csl
Gh3][%cal Rg5g2]} ({And not} 18... Bxa1 19. Rxa1 Bxh3 20. Bf1) 19. Bg3 {
[%emt 0:00:04]} Bxa1 {[%emt 0:01:24]} 20. Nxe4 {[%emt 0:01:04] [#]} Qe7 {
[%emt 0:01:10]} 21. gxh3 {[%emt 0:03:18]} Be5 {[%emt 0:00:10]} ({But not} 21...
Qxe4 $2 22. Rxa1 a5 23. bxa5 $19) 22. Rc1 {[%emt 0:00:10]} Bxg3 {[%emt 0:05:37]
} 23. Nxg3 {[%emt 0:00:02]} Nf6 {[%emt 0:00:08]} 24. Be2 {[%emt 0:02:43]} Rac8
{[%emt 0:02:46]} 25. Bf3 {[%emt 0:00:38]} (25. Rc4 {was called for.}) 25... c5
{[%emt 0:01:40]} 26. b5 {[%emt 0:00:06]} c4 {[%emt 0:00:03]} 27. Rxc4 {[%emt 0:
00:41]} Rxc4 {[%emt 0:00:04]} 28. Qxc4 {[%emt 0:00:03]} Qxa3 {[%emt 0:00:06]}
29. Ne2 {[%emt 0:01:58]} Rd2 {[%emt 0:00:00]} 30. Qf4 {[%emt 0:01:37]} Qd6 {
[%emt 0:01:56]} 31. Qa4 {[%emt 0:00:46]} Qc5 {[%emt 0:00:20]} 32. Qf4 {[%emt 0:
00:27]} Kg7 {[%emt 0:02:03]} 33. Nd4 {[%emt 0:00:19]} Rb2 {[%emt 0:00:46]
Against Nb3} 34. Bc6 $2 {[%emt 0:00:40]} (34. Kg2) 34... h6 {[%emt 0:02:20]} (
34... Nh5 $142 35. Qe4 Qc1+ 36. Kg2 Rb1 37. Qe5+ Kh6) 35. h4 $2 {[%emt 0:01:19]
} (35. Kg2) 35... Nh5 {[%emt 0:01:31]} 36. Qe4 {[%emt 0:01:11]} Qc1+ {[%emt 0:
00:48]} 37. Kg2 {[%emt 0:00:01]} Rb1 {[%emt 0:00:09][%csl Gb1][%cal Rc1h1]} 38.
Kh3 {[%emt 0:02:04]} Qf1+ {[%emt 0:00:00]} 39. Qg2 {[%emt 0:00:02]} Qxg2+ {
[%emt 0:01:12]} 40. Kxg2 {[%emt 0:00:00] Endgame KRN-KBN} Nf6 {[%emt 0:00:09]}
41. Bf3 {[%emt 0:02:06]} Rb2 {[%emt 0:05:31]} 42. Kg3 {[%emt 0:02:15]} Ne8 {
[%emt 0:07:07]} 43. h5 {[%emt 0:02:17]} Nd6 {[%emt 0:01:39]} 44. Bc6 {[%emt 0:
00:36]} (44. hxg6 $142 fxg6 45. Be2) 44... Nf5+ {[%emt 0:06:56] Black is
clearly winning.} 45. Nxf5+ {[%emt 0:01:10]} gxf5 {[%emt 0:00:03] KR-KB} 46. f3
{[%emt 0:00:35]} Kf6 {[%emt 0:00:35] Strongly threatening ...Rc2.} 47. Kf4 {
[%emt 0:00:19]} Rh2 {[%emt 0:00:04]} 48. Kg3 {[%emt 0:00:04]} Rc2 {[%emt 0:00:
04] White must now prevent ...a5.} 49. Kf4 {[%emt 0:00:10]} Rc4+ {[%emt 0:00:
11]} (49... a5 $142 50. e4 Rb2) 50. e4 {[%emt 0:00:05]} fxe4 {[%emt 0:00:04]}
51. fxe4 {[%emt 0:00:00]} Rc5 {[%emt 0:00:04] Weighted Error Value: White=0.69/
Black=0.25 (precise)} 0-1